{"text_format":"1","workbook":"xlsx","n_sheets":2,"sheets":["Seniors","Juniors"],"not_rendered":{"charts":0,"images":3,"macros":0,"external_links":0,"defined_names":0,"comments":0,"pivot_tables":0},"unopened":[],"bounds":{"document_bytes":16777216,"sheet_cells":100000,"rows_first":2000,"rows_last":500,"rows_between":2000,"halvings":0,"cell_chars":16384,"cell_head_chars":4096},"cells_cut":0,"cells_raw":0,"read":"whole","date_system":"1900"}

{"sheet":"Seniors","index":0,"n_rows":89,"n_cols":10,"rows_kept":89,"cut":false,"hidden":false,"merged":[]}
["The 8th STARS of MATHEMATICS  Competition ©  11/29/2014,  ICHB, Bucharest   ***  Results  ***  (+Corr.)"]
["Competitor","Gr.","School","City","P1","P2","P3","P4","Total","Prize"]
["PUIU Andrei-Bogdan","XII","C.N. V. Alecsandri","Galaţi",10,10,10,10,{"$f":"SUM(E3:H3)","v":40},"First"]
["SPĂTARU Ştefan","XII","ICHB","Bucureşti",10,10,10,10,40,"First"]
["BOCANU Marius","XII","ICHB","Bucureşti",10,10,10,10,40,"First"]
["ANDRONACHE Andrei Teodor","XI","ICHB","Bucureşti",10,10,2,10,32,"Mention"]
["PLOSCARU Ioan Laurenţiu","XI","C.N. A. Lahovari","Rm Vâlcea",10,10,10,2,32,"Mention"]
["BONCIOCAT Ciprian","IX","C.N. T. Vianu","Bucureşti",10,10,10,1,31,"Mention"]
["ION Filip Alexandru","X","C.N. M. Viteazul","Bucureşti",10,10,10,0,30,"Mention"]
["TUDOSE Ştefan Rareş","X","ICHB","Bucureşti",10,10,10,null,30,"Mention"]
["MIHALCU Alexandru","X","ICHB","Bucureşti",10,10,10,null,30,"Mention"]
["COBZARU Raluca-Ioana","XI","ICHB","Bucureşti",5,10,10,0,25,"♀Mention"]
["LUCESCU Theodor","X","ICHB","Bucureşti",10,9,4,null,23,"Mention"]
["CIOCAN Antonie","IX","ICHB","Bucureşti",null,10,10,2,22,"Mention"]
["DOMINTE Ştefan","X","ICHB","Bucureşti",10,10,2,null,22,"Mention"]
["STĂNIŞOR Ştefan Dan","XI","ICHB","Bucureşti",2,10,10,null,22,"Mention"]
["TELEANU Cristian","XI","Lic. Teor. Ovidius","Constanţa",10,10,2,null,22,"Mention"]
["GRAUR Andrei","XI","ICHB","Bucureşti",0.5,10,10,1,21.5,"Mention"]
["IVAN Maria-Romina","XII","ICHB","Bucureşti",2,10,9,null,21,"♀Mention"]
["PAŞA Andrei","X","Colegiul Naţional","Iaşi",0,10,1,10,21,"Mention"]
["DOICA Mihnea-Gabriel","IX","ICHB","Bucureşti",10,10,null,null,20,"Mention"]
["STOIENESCU Paul","X","ICHB","Bucureşti",10,0,10,null,20,"Mention"]
["AVĂDANEI Ovidiu","XI","C.N. E. Racoviţă","Iaşi",10,0,9,0,19,"Mention"]
["PĂTRĂŞCANU Casian","XI","ICHB","Bucureşti",0,10,8,0,{"$f":"SUM(E24:H24)","v":18},"Mention"]
["PLOPEANU Tudor","IX","ICHB","Bucureşti",null,5,null,8,{"$f":"SUM(E25:H25)","v":13}]
["ANDREICA Radu","IX","ICHB","Bucureşti",2,10,0,null,12]
["BALABAN Alexandru","IX","C.N. T. Vianu","Bucureşti",2,10,null,null,12]
["BICHIR Dan Victor","IX","ICHB","Bucureşti",2,10,0,0,12]
["MUSTĂŢEA Radu Ioan","IX","ICHB","Bucureşti",null,10,2,null,12]
["POPESCU Tidor-Dimitrie","X","C.N. T. Vianu","Bucureşti",0,10,2,0,12]
["TEODORESCU Ioana","X","ICHB","Bucureşti",0,10,2,null,12,"♀"]
["DICILEA Alex Valentin","X","C.N. T. Vianu","Bucureşti",0,10,1,0,11]
["DIMA Andreea","IX","C.N. T. Vianu","Bucureşti",10,1,0,null,11,"♀"]
["MOROŞANU Robert","X","ICHB","Bucureşti",null,10,null,null,10]
["LIA Ioana Teodora","X","ICHB","Bucureşti",0,9,0,0,{"$f":"SUM(E35:H35)","v":9},"♀"]
["CHIROIU Doina","X","ICHB","Bucureşti",0,3,null,2,5,"♀"]
["POPA Ştefan Cristian","IX","ICHB","Bucureşti",null,4,null,null,4]
["DAMIAN Doru","X","C.N. C.D. Loga","Timişoara",2,0,1,0,3]
["FRĂSINEANU Anca Gabriela","IX","ICHB","Bucureşti",null,1,0,0,1,"♀"]
["IVANA Iulia","IX","ICHB","Bucureşti",null,1,null,null,1,"♀"]
["RADU Ana-Maria","IX","ICHB","Bucureşti",0,1,0,null,1,"♀"]
["DONDERA Alin","IX","ICHB","Bucureşti",0,0,null,null,0]
["BARBU Sebastian","XII","C.N. M. Viteazul","Ploieşti",null,null,null,null,null,"DNS"]
["BOGOI Smaranda","IX","ICHB","Bucureşti",null,null,null,null,null,"♀DNS"]
["COJOCARIU Sebastian","XI","ICHB","Bucureşti",null,null,null,null,null,"DNS"]
["FICIU Bogdan","IX","ICHB","Bucureşti",null,null,null,null,null,"DNS"]
["ILIE Cătălin Andrei","XII","C.N. M. Viteazul","Ploieşti",null,null,null,null,null,"DNS"]
["JIDOVIN Cristina ","XI","ICHB","Bucureşti",null,null,null,null,null,"♀DNS"]
["LUCESCU Patrick","XII","ICHB","Bucureşti",null,null,null,null,null,"DNS"]
["OPREA Adrian","X","C.N. G. Moisil","Urziceni",null,null,null,null,null,"DNS"]
["TEODORESCU Lavinia","IX","ICHB","Bucureşti",null,null,null,null,null,"♀DNS"]
[]
[]
["Corrections",null,"Grand Total",{"$f":"SUBTOTAL(3,$A$3:$A$42)","v":40},{"$f":"SUBTOTAL(9,$E$3:$E$42)","v":177.5},{"$f":"SUBTOTAL(9,$F$3:$F$42)","v":304},{"$f":"SUBTOTAL(9,$G$3:$G$42)","v":175},{"$f":"SUBTOTAL(9,$H$3:$H$42)","v":66},{"$f":"SUBTOTAL(9,$I$3:$I$42)","v":722.5},"***********"]
[null,null,"Average","************",{"$f":"SUBTOTAL(9,$E$3:$E$42)/D54","v":4.4375},{"$f":"SUBTOTAL(9,$F$3:$F$42)/D54","v":7.6},{"$f":"SUBTOTAL(9,$G$3:$G$42)/D54","v":4.375},{"$f":"SUBTOTAL(9,$H$3:$H$42)/D54","v":1.65},{"$f":"SUBTOTAL(9,$I$3:$I$42)/D54","v":18.0625},"***********"]
[]
[]
[]
[]
[]
[]
[]
[]
[]
[]
[]
[]
[]
[]
[]
[]
["GRADING TEAM","  P","PREPARATION","Position"]
[]
[null,1,"ÖZ Mustafa","Principal"]
["VACARIU Victor",1.1000000000000001,"ŞAHIN Ismail","Logistics"]
["ŢUREA Lucian",1.2,"SCHWARZ Dan","Scientific"]
[null,2,"SCHWARZ Dan","Supervisor"]
["GEORGESCU Flavian",2.1,"COLOR CODES","Counts"]
["NICOLAE Elena",2.2000000000000002]
[null,3,"ICHB    Bucharest",{"$f":"COUNTIF(C3:C42,\"ICHB\")","v":28}]
["ONIŞOR Ionuţ",3.1,"Other   Bucharest",{"$f":"COUNTIF(D3:D42,\"Bucureşti\")-D80","v":6}]
["BARAD Gefry",3.2,"           Province",{"$f":"D54-D80-D81","v":6}]
[null,4,"Seniors (X/XI/XII)",{"$f":"D54-D84","v":26}]
["ŞERBĂNESCU Dinu",4.0999999999999996,"Cadets     (IX)",{"$f":"COUNTIF(B3:B42,\"IX\")+COUNTIF(B3:B42,\"VII\")+COUNTIF(B3:B42,\"VIII\")","v":14}]
["SCHWARZ Dan",4.2,"♀ (female gender)",{"$f":"COUNTIF(J3:J42,\"*♀*\")","v":9}]
[]
[null,null,"X   Grade",{"$f":"COUNTIF(B3:B42,\"X\")","v":14}]
[null,null,"XI  Grade",{"$f":"COUNTIF(B3:B42,\"XI\")","v":8}]
[null,null,"XII Grade",{"$f":"COUNTIF(B3:B42,\"XII\")","v":4}]

{"sheet":"Juniors","index":1,"n_rows":50,"n_cols":10,"rows_kept":50,"cut":false,"hidden":false,"merged":[]}
["The 8th STARS of MATHEMATICS  Competition ©  11/29/2014,  ICHB, Bucharest   ***  Results  ***  (+Corr.)"]
["Competitor","Gr.","School","City","P1","P2","P3","P4","Total","Prize"]
["CUTURELA Lenca","VIII","ICHB","Bucureşti",10,10,5,0,{"$f":"SUM(E3:H3)","v":25},"♀First"]
["BADEA Alexandru","VIII","Şcoala nr. 97","Bucureşti",10,10,4.5,0,24.5,"Second"]
["PANTEA Andrei Tiberiu","VII","ICHB","Bucureşti",10,10,4,0,{"$f":"SUM(E5:H5)","v":24},"Third"]
["BOŞÂNTĂ Alexandru Andrei","IX","ICHB","Bucureşti",10,10,4,0,{"$f":"SUM(E6:H6)","v":24},"Third"]
["MEMIŞ Edis","VII","Lic. Teor. Traian","Constanţa",10,10,null,0,20,"Mention"]
["ABU SHANAB Amina","VI","ICHB","Bucureşti",10,7,null,2,19,"♀Mention"]
["DRĂGOI Sabina","VIII","ICHB","Bucureşti",10,2,4,0,16,"♀Mention"]
["GAVRILĂ Cosmin","VIII","ICHB","Bucureşti",10,2,4,0,16,"Mention"]
["DIMA Clara-Maria","VIII","ICHB","Bucureşti",1,10,4,0,15,"♀Mention"]
["ILIANT Theodor Mihai","VIII","C.N. M. cel Bătrân","Constanţa",10,4,null,0,14,"Mention"]
["PICU George","VII","ICHB","Bucureşti",10,2,0,2,14,"Mention"]
["TIMOFTE Alexandra","VII","C.N. T. Vianu","Bucureşti",2,2,4,5,13,"♀Mention"]
["TRAN BACH Nguyen (Tak)","VI","ICHB","Bucureşti",10,1,null,0,11]
["NICOLAE Ioan-Andrei","VIII","ICHB","Bucureşti",2,2,4,0,8]
["MORECUŢ Andreea Bianca","VIII","Şcoala nr. 97","Bucureşti",1,2,4,0,7,"♀"]
["PREOTEASA Mircea Costin","VIII","Şcoala nr. 97","Bucureşti",0,3,0,0,3]
["STEGĂRESCU Nicoleta","VII","Şcoala nr. 17 Pia B.","Bucureşti",null,0,0,0,0,"♀"]
["BALACI Andrei Lucian","VII","C.N. Fraţii Buzeşti","Craiova",null,null,null,null,null,"DNS"]
["CIOC Alex Andrei","VII","Şc. Gimnaz. Traian","Piteşti",null,null,null,null,null,"DNS"]
["SIMA Andreea","VII","Şcoala nr. 79","Bucureşti",null,null,null,null,null,"♀DNS"]
[]
["Corrections",null,"Grand Total",{"$f":"SUBTOTAL(3,$A$3:$A$19)","v":17},{"$f":"SUBTOTAL(9,$E$3:$E$17)","v":116},{"$f":"SUBTOTAL(9,$F$3:$F$19)","v":87},{"$f":"SUBTOTAL(9,$G$3:$G$19)","v":41.5},{"$f":"SUBTOTAL(9,$H$3:$H$19)","v":9},{"$f":"SUBTOTAL(9,$I$3:$I$19)","v":253.5},"************"]
[null,null,"Average","************",{"$f":"SUBTOTAL(9,$E$3:$E$19)/D24","v":6.8235294117647056},{"$f":"SUBTOTAL(9,$F$3:$F$19)/D24","v":5.117647058823529},{"$f":"SUBTOTAL(9,$G$3:$G$19)/D24","v":2.4411764705882355},{"$f":"SUBTOTAL(9,$H$3:$H$19)/D24","v":0.52941176470588236},{"$f":"SUBTOTAL(9,$I$3:$I$19)/D24","v":14.911764705882353},"************"]
[]
[]
[]
[]
[]
[]
[]
["GRADING TEAM","  P","PREPARATION","Position"]
[]
[null,1,"ÖZ Mustafa","Principal"]
["IVAN Maria Romina",1.1000000000000001,"IVANOVICI Lioara","Logistics"]
["PLOSCARU Ioan Laurenţiu",1.2,"SCHWARZ Dan","Scientific"]
[null,2,"SCHWARZ Dan","Supervisor"]
["ANDRONACHE Andrei",2.1,"COLOR CODES","Counts"]
["DOICA Mihnea-Gabriel",2.2000000000000002]
[null,3,"ICHB   Bucharest",{"$f":"COUNTIF(C3:C19,\"ICHB\")","v":10}]
["BOCANU Marius",3.1,"Other  Bucharest",{"$f":"COUNTIF(D3:D19,\"Bucureşti\")-D41","v":5}]
["TUDOSE Ştefan Rareş",3.2,"          Province",{"$f":"D24-D41-D42","v":2}]
[null,4,"Juniors (VI/VII/VIII)",{"$f":"D24-D45","v":16}]
["ŞERBĂNESCU Dinu",4.0999999999999996,"Cadets    (IX)",{"$f":"COUNTIF(B3:B19,\"IX\")","v":1}]
["MIHALCU Alexandru",4.2,"♀ (female gender)",{"$f":"COUNTIF(J3:J19,\"*♀*\")","v":7}]
[]
[null,null,"VI   Grade",{"$f":"COUNTIF(B3:B19,\"VI\")","v":2}]
[null,null,"VII  Grade",{"$f":"COUNTIF(B3:B19,\"VII\")","v":5}]
[null,null,"VIII Grade",{"$f":"COUNTIF(B3:B19,\"VIII\")","v":9}]